bitfinex/quotes_SOLUSD_20251201
["timestamp","ask_amount","ask_price","bid_price","bid_amount"]
[1764627943714,0.1,126.72,126.66,30.12499962]
[1764627943916,0.1,126.72,126.71,2.49196631]
[1764627944099,0.1,126.72,126.7,16.308864]
[1764627945299,0.1,126.72,126.7,25.048864]
[1764627945505,0.1,126.72,126.7,16.308864]
[1764627945901,0.1,126.72,126.71,7.89203693]
[1764627946989,0.1,126.72,126.69,27.62578932]
[1764627951618,2.59196631,126.72,126.69,7.89328281]
[1764627951806,0.1,126.72,126.69,7.89328281]
[1764627955125,0.1,126.72,126.68,27.62793596]
[1764627956617,2.59196631,126.72,126.68,27.62793596]
[1764627963535,0.1,126.72,126.68,27.62793596]
[1764627965746,2.59196631,126.72,126.68,27.62793596]
[1764627965941,2.59196631,126.72,126.68,19.73403006]
[1764627966247,2.49196631,126.7,126.68,19.73403006]
[1764627967922,2.49196631,126.69,126.67,7.89452909]
[1764627968147,17.95932923,126.72,126.67,27.63085181]
[1764627968148,2.49196631,126.71,126.67,27.63085181]
[1764627970125,2.49196631,126.69,126.67,7.89452909]
[1764627970335,2.49196631,126.68,126.67,7.89452909]
[1764627970523,2.49196631,126.68,126.66,7.89498434]
[1764627971883,12.45983155,126.67,126.61,23.7332384]
[1764627972050,2.49196631,126.62,126.58,7.9001422]
[1764627972250,2.49196631,126.63,126.61,16.308864]
[1764627972747,2.49196631,126.64,126.62,16.308864]
[1764627973151,7.89338028,126.69,126.62,16.308864]
[1764627973351,2.49196631,126.66,126.62,16.308864]
[1764627975170,8.74,126.68,126.62,16.308864]
[1764627975171,2.49196631,126.69,126.64,2.49196631]
[1764627975547,2.49196631,126.69,126.63,27.63957987]
[1764627975857,2.49196631,126.68,126.63,30.13154618]
[1764627976059,2.49196631,126.67,126.63,27.63957987]
[1764627976683,2.49196631,126.67,126.63,30.13154618]
[1764627977553,8.74,126.7,126.64,2.49196631]
[1764627977773,16.408864,126.72,126.67,16.308864]
[1764627977774,2.59196631,126.72,126.67,16.308864]
[1764627977978,11.33196631,126.72,126.67,18.80083031]
[1764627979271,11.33196631,126.72,126.68,27.62867066]
[1764627979474,8.84,126.72,126.68,27.62867066]
[1764627979679,8.84,126.72,126.68,30.12063697]
[1764627980374,0.1,126.72,126.69,3.89135272]
[1764627981271,0.1,126.72,126.71,11.78338965]
[1764627981474,8.84,126.75,126.71,20.59333457]
[1764627981475,0.1,126.75,126.71,20.59333457]
[1764627981779,0.1,126.75,126.74,16.308864]
[1764627982159,0.1,126.75,126.73,3.89135272]
[1764627982353,0.1,126.75,126.74,16.308864]
[1764627983273,0.1,126.75,126.74,24.19903284]
[1764627985179,0.1,126.75,126.74,28.09038556]
[1764627985876,3.89135272,126.78,126.76,7.88892395]
[1764627987972,3.89135272,126.78,126.75,16.62937099]
[1764627989464,12.63135272,126.78,126.75,16.62937099]
[1764627989969,12.63135272,126.78,126.75,7.88937099]
[1764627991563,3.89135272,126.76,126.73,16.308864]
[1764627993384,16.62776331,126.78,126.76,4.94864728]
[1764627993569,3.89135272,126.77,126.76,4.94864728]
[1764627994371,16.62776331,126.78,126.76,4.94864728]
[1764627994571,3.89135272,126.77,126.76,4.94864728]
[1764627995288,8.74,126.78,126.76,4.94864728]
[1764627995701,3.89135272,126.77,126.76,4.94864728]
[1764627998080,11.92181593,126.77,126.76,4.94864728]
[1764627998702,8.95210649,126.76,126.68,19.7340381]
[1764627998880,3.89135272,126.71,126.69,7.89328281]
[1764627999690,12.63135272,126.72,126.69,7.89328281]
[1764627999888,3.89135272,126.71,126.69,7.89328281]
[1764628000907,12.63135272,126.72,126.69,7.89328281]
[1764628001856,12.63135272,126.72,126.71,16.308864]
[1764628005326,24.55635048,126.72,126.69,7.89328281]
[1764628005532,3.89135272,126.7,126.69,24.20214681]
[1764628006148,3.89135272,126.7,126.69,7.89328281]
[1764628006354,3.89135272,126.7,126.68,7.8939059]
[1764628006722,3.89135272,126.71,126.68,7.8939059]
[1764628009826,16.63148347,126.72,126.68,7.8939059]
[1764628010241,3.89135272,126.71,126.68,7.8939059]
[1764628011154,3.89135272,126.7,126.68,7.8939059]
[1764628012151,3.89135272,126.71,126.68,7.8939059]
[1764628017157,3.89135272,126.71,126.67,7.89444937]
[1764628017650,16.77358152,126.72,126.71,4.94864728]
[1764628018763,20.66493424,126.72,126.71,4.94864728]
[1764628020547,8.74,126.72,126.71,4.94864728]
[1764628020856,3.89135272,126.72,126.71,4.94864728]
[1764628021170,8.74,126.73,126.71,12.84030357]
[1764628026396,12.63135272,126.75,126.71,12.84030357]
[1764628030584,8.74,126.75,126.71,36.46174862]
[1764628030784,8.74,126.75,126.72,3.89135272]
[1764628030986,8.74,126.75,126.71,36.46174862]
[1764628031871,0.1,126.8,126.74,3.89135272]
[1764628032074,12.63135272,126.79,126.74,3.89135272]
[1764628032376,12.63135272,126.79,126.75,7.88954635]
[1764628032676,12.63135272,126.79,126.75,27.61341222]
[1764628033886,8.74,126.79,126.75,31.50476494]
[1764628034180,0.1,126.8,126.78,3.89135272]
[1764628034382,0.1,126.8,126.79,7.88705733]
[1764628035483,0.1,126.8,126.79,28.08727405]
[1764628037785,0.1,126.81,126.79,36.89721897]
[1764628037968,0.1,126.81,126.8,3.89135272]
[1764628038770,1e-08,126.81,126.8,20.58773297]
[1764628039365,1e-08,126.81,126.8,29.30773297]
[1764628039885,1e-08,126.81,126.8,25.55854182]
[1764628040097,1e-08,126.81,126.8,29.44989454]
[1764628040268,1e-08,126.81,126.8,28.08665205]
[1764628040473,1e-08,126.81,126.8,36.80665205]
[1764628042394,1e-08,126.81,126.8,35.4013038]
[1764628045101,1e-08,126.81,126.8,73.4013038]
[1764628045402,1e-08,126.81,126.8,82.35341029]
[1764628046994,1e-08,126.81,126.8,82.21124872]
[1764628047394,0.1,126.84,126.82,2.48600447]
[1764628048087,0.65,126.83,126.81,46.83999999]
[1764628048266,0.65,126.83,126.81,49.32600446]
[1764628048997,0.65,126.83,126.82,7.88519161]
[1764628050475,0.75,126.84,126.82,7.88519161]
[1764628051072,0.75,126.84,126.82,10.37119608]
[1764628052290,0.75,126.84,126.82,30.0841751]
[1764628052493,0.75,126.84,126.82,27.59817063]
[1764628053696,0.75,126.84,126.82,30.0841751]
[1764628054795,0.1,126.84,126.82,30.0841751]
[1764628054974,0.1,126.84,126.82,30.7841751]
[1764628055907,0.1,126.84,126.83,2.48600447]
[1764628057602,1e-08,126.84,126.83,36.18938328]
[1764628058003,1e-08,126.84,126.83,38.81754932]
[1764628058206,1e-08,126.84,126.83,33.84554038]
[1764628058426,1e-08,126.84,126.83,36.33154485]
[1764628059477,1e-08,126.84,126.83,36.18938328]
[1764628061684,1e-08,126.84,126.83,44.90938328]
[1764628062024,1e-08,126.84,126.83,45.05154485]
[1764628062209,1e-08,126.84,126.83,54.99556273]
[1764628063009,1e-08,126.84,126.83,92.99556273]
[1764628063211,1e-08,126.84,126.83,83.05154485]
[1764628063419,1e-08,126.84,126.83,73.48938328]
[1764628063708,1e-08,126.84,126.83,26.67943836]
[1764628068943,1e-08,126.84,126.83,64.67943836]
[1764628071500,1e-08,126.84,126.83,65.38943836]
[1764628072392,1e-08,126.84,126.83,64.67943836]
[1764628074209,1e-08,126.84,126.83,65.38943836]
[1764628074908,1e-08,126.84,126.83,74.19938328]
[1764628076724,1e-08,126.84,126.83,65.38943836]
[1764628077299,1e-08,126.84,126.83,64.67943836]
[1764628077624,0.69,126.85,126.84,8.83999999]
[1764628078817,0.69,126.85,126.84,16.72394827]
[1764628080813,0.69,126.85,126.84,54.72394827]
[1764628081199,3.17600447,126.85,126.84,8.83999999]
[1764628085227,0.69,126.85,126.84,8.83999999]
[1764628085434,3.31816604,126.85,126.84,8.83999999]
[1764628086030,0.14216157,126.84,126.8,7.88586412]
[1764628086222,2.48600447,126.81,126.8,7.88586412]
[1764628086730,3.17600447,126.81,126.8,7.88586412]
[1764628087228,3.17600447,126.81,126.78,19.71768215]
[1764628087408,3.17600447,126.8,126.78,19.71768215]
[1764628089021,0.69,126.79,126.78,19.71768215]
[1764628089236,3.17600447,126.79,126.77,7.88830164]
[1764628089426,0.69,126.79,126.76,27.61046939]
[1764628089738,0.69,126.79,126.76,28.32046939]
[1764628090826,3.17600447,126.79,126.76,27.61046939]
[1764628091033,2.48600447,126.78,126.76,27.61046939]
[1764628091332,3.17600447,126.78,126.76,7.88892395]
[1764628091632,3.16600447,126.77,126.75,7.88937147]
[1764628091810,2.48600447,126.79,126.75,7.88937147]
[1764628092014,0.68,126.78,126.75,7.88937147]
[1764628093233,0.68,126.79,126.76,3.14600447]
[1764628093433,0.68,126.79,126.77,7.88830164]
[1764628093814,0.68,126.81,126.77,3.14600447]
[1764628094014,2.48600447,126.8,126.76,7.88892395]
[1764628094230,2.48600447,126.79,126.76,7.88892395]
[1764628094738,3.16600447,126.79,126.76,7.88892395]
[1764628094938,0.68,126.81,126.77,0.66]
[1764628095232,0.68,126.81,126.77,3.14600447]
[1764628095554,11.20600447,126.83,126.8,7.88643533]
[1764628095710,0.68,126.82,126.8,7.88643533]
[1764628099644,3.16600447,126.82,126.79,27.60450035]
[1764628099944,0.68,126.82,126.79,27.60450035]
[1764628100515,8.72,126.83,126.8,0.66]
[1764628101246,9.4,126.83,126.8,0.66]
[1764628101454,9.4,126.83,126.81,7.88581342]
[1764628103144,13.28507896,126.83,126.81,7.88581342]
[1764628103646,4.56507896,126.82,126.79,38.0]
[1764628103817,3.88507896,126.81,126.79,38.0]
[1764628104138,4.56507896,126.81,126.78,7.88767944]
[1764628104351,4.56507896,126.8,126.78,7.88767944]
[1764628104649,4.56507896,126.8,126.76,39.44461975]
[1764628104650,12.60507896,126.79,126.76,7.88892395]
[1764628104823,3.88507896,126.77,126.76,7.88892395]
[1764628105753,3.88507896,126.77,126.75,19.72327054]
[1764628105754,3.88507896,126.77,126.75,27.61281689]
[1764628106049,4.56507896,126.77,126.75,7.88954635]
[1764628106752,0.68,126.77,126.75,7.88954635]
[1764628106933,4.56507896,126.77,126.75,7.88954635]
[1764628107446,16.60725193,126.79,126.7,71.99046114]
[1764628107447,3.88507896,126.76,126.7,71.99046114]
[1764628107647,3.88507896,126.71,126.69,7.89328281]
[1764628107945,0.68,126.75,126.7,4.54507896]
[1764628108143,8.72,126.74,126.7,0.66]
[1764628108344,0.68,126.76,126.72,3.88507896]
[1764628108552,9.4,126.76,126.72,3.88507896]
[1764628108725,9.4,126.76,126.73,0.66]
[1764628108921,8.72,126.77,126.73,0.66]
[1764628109160,9.4,126.77,126.73,4.54507896]
[1764628109534,9.4,126.77,126.75,7.88954635]
[1764628109939,0.68,126.77,126.75,7.88954635]
[1764628110236,8.72,126.78,126.75,8.54954635]
[1764628110459,8.72,126.78,126.75,28.27341222]
[1764628110958,8.72,126.78,126.75,27.61341222]
[1764628111257,8.72,126.78,126.75,28.27341222]
[1764628111834,9.4,126.78,126.75,28.27341222]
[1764628112460,8.72,126.78,126.75,28.27341222]
[1764628113528,8.72,126.78,126.75,19.72386587]
[1764628113746,8.72,126.78,126.75,20.38386587]
[1764628114628,9.38,126.78,126.75,20.38386587]
[1764628115350,8.72,126.78,126.75,20.38386587]
[1764628115850,8.72,126.78,126.75,28.27341222]
[1764628116239,8.72,126.78,126.76,0.68]
[1764628116444,8.72,126.78,126.75,28.29341222]
[1764628116636,0.66,126.79,126.76,0.68]
[1764628116957,9.38,126.79,126.76,0.68]
[1764628117658,13.26507896,126.79,126.76,0.68]
[1764628118558,13.26507896,126.79,126.76,8.56858978]
[1764628121062,13.26507896,126.79,126.76,8.56858978]
[1764628121359,8.72,126.79,126.77,0.68]
[1764628121760,12.60507896,126.79,126.77,0.68]
[1764628122059,3.88507896,126.8,126.77,0.68]
[1764628122229,12.60507896,126.8,126.77,0.68]
[1764628122435,13.30507896,126.8,126.77,0.68]
[1764628123259,9.42,126.8,126.78,7.88767944]
[1764628123444,13.30507896,126.8,126.78,7.88767944]
[1764628123952,8.72,126.8,126.78,8.56767944]
[1764628124332,8.72,126.8,126.78,7.88767944]
[1764628124532,9.42,126.8,126.78,7.88767944]
[1764628125050,8.72,126.8,126.78,8.56767944]
[1764628125265,9.42,126.8,126.77,8.56830164]
[1764628125433,8.72,126.8,126.77,66.28905576]
[1764628125633,8.72,126.8,126.78,0.68]
[1764628127335,8.72,126.8,126.79,7.88705733]
[1764628127746,8.72,126.8,126.79,8.56705733]
[1764628131267,8.72,126.8,126.79,46.56705733]
[1764628132162,8.72,126.8,126.79,45.88705733]
[1764628132466,13.30507896,126.8,126.76,45.88888777]
[1764628132767,3.88507896,126.78,126.76,7.88888777]
[1764628133380,4.58507896,126.78,126.76,7.88888777]
[1764628134045,3.88507896,126.78,126.76,7.88888777]
[1764628134477,3.88507896,126.78,126.76,8.56888777]
[1764628135960,4.58507896,126.77,126.74,7.89016884]
[1764628136163,3.88507896,126.75,126.74,7.89016884]
[1764628136359,3.88507896,126.76,126.74,7.89016884]
[1764628138663,3.88507896,126.75,126.74,7.89016884]
[1764628138850,3.88507896,126.76,126.74,7.89016884]
[1764628139268,4.58507896,126.76,126.74,7.89016884]
[1764628144283,3.88507896,126.76,126.74,7.89016884]
[1764628144582,0.7,126.75,126.74,7.89016884]
[1764628144751,3.88507896,126.76,126.73,18.54317732]
[1764628144957,4.58507896,126.76,126.73,19.22317732]
[1764628146380,0.7,126.75,126.73,18.54317732]
[1764628146748,3.88507896,126.76,126.73,26.43396876]
[1764628146952,4.58507896,126.76,126.73,27.11396876]
[1764628147978,4.58507896,126.76,126.73,19.22317732]
[1764628148957,3.88507896,126.77,126.73,18.54317732]
[1764628149273,4.58507896,126.77,126.73,19.22317732]
[1764628149477,0.7,126.76,126.73,19.22317732]
[1764628149974,0.7,126.79,126.74,4.56507896]
[1764628150169,4.58507896,126.79,126.74,4.56507896]
[1764628150355,3.88507896,126.78,126.75,0.68]
[1764628150561,4.58507896,126.79,126.75,0.68]
[1764628150982,3.88507896,126.78,126.75,0.68]
[1764628151289,3.88507896,126.77,126.73,26.43396876]
[1764628151468,3.88507896,126.76,126.74,0.68]
[1764628151854,4.54507896,126.77,126.74,0.68]
[1764628152079,4.54507896,126.77,126.75,7.88954635]
[1764628153880,0.66,126.77,126.75,7.88954635]
[1764628155578,3.88507896,126.76,126.75,7.88954635]
[1764628157072,4.54507896,126.77,126.75,7.88954635]
[1764628157683,3.88507896,126.76,126.74,45.89011421]
[1764628157877,4.54507896,126.76,126.74,45.89011421]
[1764628158081,4.54507896,126.77,126.74,46.57011421]
[1764628160885,4.54507896,126.77,126.74,8.57011421]
[1764628162494,3.14919898,126.77,126.74,8.57011421]
[1764628169790,0.69,126.83,126.75,18.23994492]
[1764628169979,3.17919898,126.82,126.77,2.48919898]
[1764628170382,25.028864,126.85,126.76,17.018864]
[1764628170383,3.17919898,126.81,126.78,0.71]
[1764628170681,2.48919898,126.8,126.76,40.7295931]
[1764628170882,2.48919898,126.79,126.77,7.88830164]
[1764628171187,3.17919898,126.79,126.77,7.88830164]
[1764628171398,8.72,126.81,126.76,7.88865137]
[1764628171570,8.72,126.81,126.76,8.59865137]
[1764628171571,2.48919898,126.77,126.76,8.59865137]
[1764628171770,2.48919898,126.78,126.76,8.59865137]
[1764628173391,2.48919898,126.77,126.76,8.59865137]
[1764628173593,2.48919898,126.77,126.75,7.88954635]
[1764628173782,2.48919898,126.76,126.75,7.88954635]
[1764628175900,11.89919898,126.77,126.75,7.88954635]
[1764628176069,11.20919898,126.77,126.75,7.88954635]
[1764628176269,11.89919898,126.77,126.75,7.88954635]
[1764628176475,11.89919898,126.77,126.75,8.59954635]
[1764628176676,11.20919898,126.77,126.75,8.59954635]
[1764628185400,2.48919898,126.76,126.74,28.29559096]
[1764628186107,2.48919898,126.76,126.75,0.68]
[1764628186295,9.43,126.77,126.74,66.29559096]
[1764628186503,11.91919898,126.77,126.75,0.68]
[1764628187004,8.72,126.77,126.75,0.68]
[1764628187504,8.72,126.77,126.76,7.88892395]
[1764628187902,8.72,126.77,126.76,8.56892395]
[1764628188801,8.72,126.79,126.76,8.56892395]
[1764628189024,8.72,126.79,126.77,0.68]
[1764628189601,8.72,126.79,126.77,8.56785465]
[1764628190211,3.19919898,126.78,126.74,47.4]
[1764628190413,2.48919898,126.76,126.74,46.57001678]
[1764628190610,2.48919898,126.76,126.74,8.57001678]
[1764628190783,2.48919898,126.76,126.74,7.89001678]
[1764628191107,2.48919898,126.76,126.75,0.68]
[1764628191611,3.19919898,126.77,126.75,8.56954635]
[1764628194307,2.48919898,126.77,126.75,8.56954635]
[1764628197211,3.19919898,126.77,126.74,8.57014724]
[1764628197415,2.48919898,126.76,126.74,8.57014724]
[1764628197922,3.19919898,126.77,126.74,8.57014724]
[1764628198413,2.48919898,126.75,126.72,38.68]
[1764628198787,3.19919898,126.75,126.72,38.68]
[1764628198992,3.19919898,126.74,126.72,38.0]
[1764628199294,0.71,126.74,126.72,38.68]
[1764628199498,3.19919898,126.75,126.72,38.68]
[1764628199685,3.19919898,126.74,126.72,46.57126689]
[1764628199891,2.48919898,126.74,126.72,46.57126689]
[1764628200290,11.20919898,126.73,126.71,8.57203693]
[1764628200502,8.72,126.73,126.71,8.57203693]
[1764628201086,8.72,126.73,126.72,0.68]
[1764628202019,11.20919898,126.75,126.72,0.68]
[1764628202521,11.91919898,126.75,126.73,7.89079144]
[1764628203911,11.91919898,126.75,126.73,0.68]
[1764628204218,11.91919898,126.75,126.71,28.30212926]
[1764628204418,11.91919898,126.75,126.72,0.68]
[1764628204797,11.20919898,126.77,126.72,3.16919898]
[1764628204998,11.20919898,126.77,126.72,41.16919898]
[1764628204999,8.72,126.77,126.72,41.16919898]
[1764628205197,8.72,126.77,126.73,0.68]
[1764628206122,8.72,126.77,126.74,7.89016884]
[1764628206824,8.72,126.77,126.75,0.68]
[1764628208331,8.72,126.81,126.76,2.48919898]
[1764628208522,2.48919898,126.8,126.75,30.78247335]
[1764628208825,9.43,126.81,126.76,3.16919898]
[1764628208826,11.91919898,126.81,126.76,3.16919898]
[1764628209233,11.91919898,126.81,126.78,7.88767944]
[1764628209638,2.48919898,126.8,126.78,7.88767944]
[1764628209838,2.48919898,126.8,126.78,8.56767944]
[1764628210411,3.19919898,126.8,126.78,7.88767944]
[1764628210821,11.91919898,126.81,126.78,8.56767944]
[1764628211019,8.72,126.81,126.78,7.88767944]
[1764628211311,8.72,126.81,126.8,7.88643533]
[1764628211512,3.18919898,126.84,126.8,7.88643533]
[1764628211716,3.18919898,126.84,126.81,0.69]
[1764628211923,8.72,126.83,126.81,0.69]
[1764628212319,8.72,126.83,126.81,3.17919898]
[1764628212522,8.72,126.85,126.82,3.17919898]
[1764628213043,8.72,126.85,126.83,0.69]
[1764628213247,8.72,126.85,126.83,8.57433133]
[1764628213952,8.72,126.85,126.83,0.69]
[1764628214746,8.72,126.85,126.83,8.5745404]
[1764628215143,8.72,126.85,126.83,0.69]
[1764628215720,8.72,126.85,126.83,8.57444013]
[1764628218030,8.72,126.85,126.83,7.88444013]
[1764628218336,8.72,126.85,126.84,0.69]
[1764628219248,11.90919898,126.85,126.83,7.88444013]
[1764628219455,8.72,126.85,126.83,8.57444013]
[1764628219624,8.72,126.85,126.84,0.69]
[1764628220031,8.72,126.85,126.84,8.57394828]
[1764628220847,8.72,126.85,126.83,7.88442533]
[1764628221054,11.90919898,126.85,126.83,7.88442533]
[1764628221351,11.20919898,126.85,126.83,8.57442533]
[1764628221559,3.18919898,126.84,126.81,7.88581342]
[1764628221757,2.48919898,126.82,126.79,0.69]
[1764628221932,2.48919898,126.81,126.79,0.69]
[1764628222244,2.48919898,126.81,126.77,7.88830164]
[1764628222245,2.48919898,126.8,126.77,7.88830164]
[1764628222453,3.18919898,126.8,126.77,8.57830164]
[1764628222628,2.48919898,126.8,126.78,0.69]
[1764628223460,3.18919898,126.79,126.77,7.88830164]
[1764628223769,2.48919898,126.78,126.75,7.88954635]
[1764628223935,2.48919898,126.76,126.75,7.88954635]
[1764628224254,11.20919898,126.76,126.73,7.89079144]
[1764628224549,3.89094515,126.74,126.72,7.89124253]
[1764628224755,12.61094515,126.73,126.72,7.89124253]
[1764628225247,13.31094515,126.73,126.7,8.58230113]
[1764628225446,3.89094515,126.72,126.7,8.58230113]
[1764628226831,4.59094515,126.71,126.7,7.89230113]
[1764628227139,12.61094515,126.73,126.7,8.58230113]
[1764628227456,12.61094515,126.73,126.71,0.69]
[1764628228437,12.61094515,126.73,126.7,7.89230113]
[1764628228739,12.61094515,126.73,126.7,8.58230113]
[1764628229045,12.61094515,126.73,126.71,0.69]
[1764628229656,3.89094515,126.72,126.7,7.89230113]
[1764628230158,3.89094515,126.72,126.7,8.57230113]
[1764628230843,8.72,126.73,126.71,0.68]
[1764628232454,12.61094515,126.73,126.71,0.68]
[1764628232659,8.72,126.73,126.72,7.89141414]
[1764628233351,8.72,126.73,126.71,8.5717329]
[1764628234351,8.72,126.73,126.72,0.68]
[1764628234550,8.72,126.73,126.72,8.57141414]
[1764628235062,12.61094515,126.73,126.71,7.89203693]
[1764628235359,8.4518903,126.72,126.68,7.89372586]
[1764628235559,3.89094515,126.69,126.67,8.77428125]
[1764628235931,3.89094515,126.68,126.67,8.77428125]
[1764628236546,3.89094515,126.68,126.67,0.2]
[1764628236750,4.56094515,126.68,126.67,0.2]
[1764628237066,3.89094515,126.68,126.67,0.2]
[1764628237362,4.56094515,126.68,126.67,0.2]
[1764628237660,0.14216157,126.67,126.63,0.2]
[1764628237960,3.89094515,126.64,126.63,0.2]
[1764628238163,12.61094515,126.64,126.63,0.2]
[1764628238363,13.28094515,126.64,126.63,0.2]
[1764628239241,21.31950596,126.64,126.63,0.2]
[1764628239445,13.42310672,126.64,126.63,0.2]
[1764628240142,12.61094515,126.64,126.63,0.2]
[1764628241477,12.61094515,126.64,126.63,0.9]
[1764628241478,8.72,126.64,126.63,0.9]
[1764628241968,8.72,126.64,126.63,8.79702282]
[1764628242150,12.61094515,126.67,126.63,8.79702282]
[1764628242352,12.61094515,126.67,126.64,0.7]
[1764628242951,3.89094515,126.66,126.64,0.7]
[1764628243153,8.72,126.68,126.64,4.59094515]
[1764628243358,0.69,126.73,126.67,3.89094515]
[1764628243658,8.72,126.72,126.68,3.89094515]
[1764628244046,8.72,126.72,126.69,0.7]
[1764628244669,8.72,126.72,126.69,11.5409523]
[1764628245065,8.72,126.72,126.7,0.7]
[1764628245255,19.5809523,126.75,126.71,7.89203693]
[1764628245649,19.5809523,126.75,126.72,0.7]
[1764628245961,8.74,126.75,126.72,0.7]
[1764628246168,10.8409523,126.74,126.72,0.7]
[1764628247448,11.5309523,126.74,126.71,7.89203693]
[1764628247769,10.8409523,126.74,126.71,8.59203693]
[1764628248666,11.5309523,126.74,126.7,27.62384616]
[1764628248868,11.5309523,126.74,126.71,0.7]
[1764628249272,11.5309523,126.74,126.7,27.62384616]
[1764628249273,18.73129421,126.74,126.7,7.89265982]
[1764628249480,18.73129421,126.74,126.71,0.7]
[1764628250062,10.8409523,126.74,126.71,0.7]
[1764628250870,19.5809523,126.75,126.71,8.59150322]
[1764628251166,20.2709523,126.75,126.71,8.59150322]
[1764628251372,8.74,126.75,126.72,11.5409523]
[1764628251541,8.74,126.75,126.73,0.7]
[1764628253058,8.74,126.75,126.74,7.89016884]
[1764628253259,8.74,126.75,126.73,0.7]
[1764628253470,8.74,126.75,126.73,8.59077293]
[1764628253673,10.8409523,126.78,126.73,19.43172523]
[1764628253850,8.72,126.77,126.74,0.7]
[1764628254446,8.72,126.77,126.74,11.5409523]
[1764628254970,8.72,126.77,126.75,0.7]
[1764628255276,8.72,126.77,126.76,7.88892395]
[1764628257780,19.5609523,126.77,126.75,8.5894888]
[1764628258181,8.72,126.77,126.75,8.5894888]
[1764628260376,20.2509523,126.77,126.75,7.8894888]
[1764628261594,11.5309523,126.76,126.75,7.8894888]
[1764628261788,20.2509523,126.77,126.75,7.8894888]
[1764628263486,8.72,126.77,126.75,7.8894888]
[1764628263784,8.72,126.77,126.75,8.5894888]
[1764628266969,8.72,126.77,126.75,27.61335467]
[1764628267287,8.72,126.81,126.76,4.58791214]
[1764628267494,8.72,126.81,126.78,27.60687805]
[1764628267866,8.72,126.81,126.78,28.30687805]
[1764628268988,8.72,126.81,126.79,0.7]
[1764628270078,8.72,126.81,126.8,7.88643533]
[1764628271298,12.60791214,126.81,126.79,0.7]
[1764628271478,12.60791214,126.81,126.77,7.88830164]
[1764628271683,8.72,126.81,126.78,0.7]
[1764628271987,3.88791214,126.8,126.77,28.30905576]
[1764628272292,3.88791214,126.8,126.78,0.7]
[1764628272900,8.72,126.81,126.78,0.7]
[1764628274301,8.72,126.81,126.79,7.88705733]
[1764628274876,8.72,126.81,126.79,8.58705733]
[1764628275289,4.56791214,126.8,126.78,7.88748327]
[1764628275501,4.56791214,126.8,126.77,7.88824889]
[1764628275896,3.88791214,126.79,126.77,7.88824889]
[1764628276094,4.56791214,126.79,126.77,7.88824889]
[1764628276295,0.68,126.79,126.77,7.88824889]
[1764628276494,3.88791214,126.78,126.76,7.88884754]
[1764628276779,8.72,126.78,126.76,8.58884754]
[1764628277606,8.72,126.78,126.76,27.61115741]
[1764628277901,8.72,126.78,126.77,0.7]
[1764628279082,8.72,126.78,126.76,27.61115741]
[1764628279314,8.72,126.78,126.76,28.32115741]
[1764628280812,12.60791214,126.78,126.76,28.32115741]
[1764628283413,8.72,126.78,126.76,28.32115741]
[1764628283619,16.968864,126.84,126.77,4.59791214]
[1764628283801,3.88791214,126.82,126.77,42.59791214]
[1764628283986,3.88791214,126.82,126.78,0.71]
[1764628284484,2.48724583,126.82,126.78,0.71]
[1764628284706,2.48724583,126.82,126.79,7.88705733]
[1764628285106,11.20724583,126.83,126.8,0.71]
[1764628285610,8.72,126.83,126.8,0.71]
[1764628286810,2.48724583,126.81,126.8,7.88634024]
[1764628287312,2.48724583,126.83,126.8,8.59634024]
[1764628287485,11.20724583,126.84,126.81,0.71]
[1764628288107,11.86724583,126.84,126.81,0.71]
[1764628288615,8.72,126.84,126.82,7.88519161]
[1764628289711,8.72,126.84,126.83,0.71]
[1764628290508,8.72,126.84,126.83,8.59456989]
[1764628290703,8.72,126.87,126.83,28.30599463]
[1764628290904,8.72,126.87,126.84,0.71]
[1764628291713,9.38,126.87,126.84,0.71]
[1764628291922,11.86724583,126.87,126.83,28.30599463]
[1764628292220,11.86724583,126.87,126.84,0.71]
[1764628292723,8.72,126.87,126.84,30.79060951]
[1764628292925,2.48724583,126.87,126.84,8.59349298]
[1764628293127,0.1,126.88,126.85,0.71]